fUSD/lending_fUSD_20260610
["ID","MTS","AMOUNT","RATE_DAILY","PERIOD"]
[424654088,1781034658000,-1674.0,0.00027397,2]
[424654071,1781034658000,-565.10148306,0.00027376,4]
[424654073,1781034658000,-300.0,0.00027396,10]
[424654083,1781034658000,-500.0,0.00027397,2]
[424654072,1781034658000,-300.0,0.00027396,10]
[424654074,1781034658000,-1127.5,0.00027397,2]
[424654082,1781034658000,-1674.0,0.00027397,2]
[424654077,1781034658000,-1674.0,0.00027397,2]
[424654080,1781034658000,-1674.0,0.00027397,2]
[424654087,1781034658000,-500.0,0.00027397,2]
[424654089,1781034658000,-500.0,0.00027397,2]
[424654095,1781034658000,-500.0,0.00027397,2]
[424654084,1781034658000,-1674.0,0.00027397,2]
[424654092,1781034658000,-1674.0,0.00027397,2]
[424654081,1781034658000,-500.0,0.00027397,2]
[424654076,1781034658000,-166.6875,0.00027397,2]
[424654075,1781034658000,-383.27389316,0.00027397,2]
[424654078,1781034658000,-1674.0,0.00027397,2]
[424654079,1781034658000,-500.0,0.00027397,2]
[424654161,1781034659000,-1000.0,0.00027397,20]
[424654162,1781034659000,-254.695975,0.00027397,2]
[424654159,1781034659000,-159.05074,0.00027397,2]
[424654158,1781034659000,-159.05074,0.00027397,2]
[424654164,1781034659000,-151.0,0.00027397,2]
[424654152,1781034659000,-2851.17,0.00027397,10]
[424654156,1781034659000,-159.05074,0.00027397,2]
[424654153,1781034659000,-159.05074,0.00027397,2]
[424654157,1781034659000,-159.05074,0.00027397,2]
[424654154,1781034659000,-159.05074,0.00027397,2]
[424654150,1781034659000,-1500.0,0.00027397,2]
[424654160,1781034659000,-159.05074,0.00027397,2]
[424654155,1781034659000,-159.05074,0.00027397,2]
[424654173,1781034659000,-151.0,0.00027397,2]
[424654166,1781034659000,-151.0,0.00027397,2]
[424654167,1781034659000,-151.0,0.00027397,2]
[424654176,1781034659000,-768.98023,0.00027397,2]
[424654169,1781034659000,-151.0,0.00027397,2]
[424654172,1781034659000,-151.0,0.00027397,2]
[424654168,1781034659000,-151.0,0.00027397,2]
[424654165,1781034659000,-249.940861,0.00027397,2]
[424654170,1781034659000,-151.0,0.00027397,2]
[424654171,1781034659000,-151.0,0.00027397,2]
[424654174,1781034659000,-768.98023,0.00027397,2]
[424654175,1781034659000,-768.98023,0.00027397,2]
[424654151,1781034659000,-306.88,0.00027397,31]
[424654163,1781034659000,-815.39,0.00027397,2]
[424654149,1781034659000,-150.0,0.00027397,2]
[424654130,1781034659000,-150.0,0.00027397,2]
[424654147,1781034659000,-150.0,0.00027397,2]
[424654120,1781034659000,-1674.0,0.00027397,2]
[424654124,1781034659000,-150.0,0.00027397,2]
[424654125,1781034659000,-150.0,0.00027397,2]
[424654122,1781034659000,-150.0,0.00027397,2]
[424654129,1781034659000,-150.0,0.00027397,2]
[424654121,1781034659000,-1692.0,0.00027397,2]
[424654127,1781034659000,-150.0,0.00027397,2]
[424654123,1781034659000,-150.0,0.00027397,2]
[424654126,1781034659000,-150.0,0.00027397,2]
[424654133,1781034659000,-150.0,0.00027397,2]
[424654131,1781034659000,-150.0,0.00027397,2]
[424654132,1781034659000,-150.0,0.00027397,2]
[424654134,1781034659000,-150.0,0.00027397,2]
[424654137,1781034659000,-150.0,0.00027397,2]
[424654135,1781034659000,-150.0,0.00027397,2]
[424654136,1781034659000,-150.0,0.00027397,2]
[424654141,1781034659000,-150.0,0.00027397,2]
[424654138,1781034659000,-150.0,0.00027397,2]
[424654139,1781034659000,-150.0,0.00027397,2]
[424654140,1781034659000,-150.0,0.00027397,2]
[424654143,1781034659000,-150.0,0.00027397,2]
[424654142,1781034659000,-150.0,0.00027397,2]
[424654146,1781034659000,-150.0,0.00027397,2]
[424654144,1781034659000,-150.0,0.00027397,2]
[424654145,1781034659000,-150.0,0.00027397,2]
[424654148,1781034659000,-150.0,0.00027397,2]
[424654177,1781034659000,-768.98023,0.00027397,2]
[424654128,1781034659000,-150.0,0.00027397,2]
[424654179,1781034659000,-768.98023,0.00027397,2]
[424654206,1781034659000,-652.891274,0.00027397,2]
[424654208,1781034659000,-652.891274,0.00027397,2]
[424654205,1781034659000,-652.891274,0.00027397,2]
[424654213,1781034659000,-25546.08,0.00027397,10]
[424654218,1781034659000,-10230.44,0.000274,14]
[424654223,1781034659000,-5214.4,0.000274,2]
[424654214,1781034659000,-32528.67,0.00027397,10]
[424654224,1781034659000,-5214.4,0.000274,2]
[424654221,1781034659000,-5214.4,0.000274,2]
[424654217,1781034659000,-300.0,0.00027399,10]
[424654216,1781034659000,-150.0,0.00027397,2]
[424654220,1781034659000,-1281.01,0.000274,7]
[424654210,1781034659000,-652.891274,0.00027397,2]
[424654222,1781034659000,-5214.4,0.000274,2]
[424654229,1781034659000,-150.0,0.00027416,7]
[424654225,1781034659000,-5214.4,0.000274,2]
[424654230,1781034659000,-150.0,0.00027426,7]
[424654228,1781034659000,-150.0,0.00027405,7]
[424654227,1781034659000,-565.10148306,0.00027405,7]
[424654226,1781034659000,-167.21291421,0.00027405,7]
[424654232,1781034659000,-167.21291421,0.00027435,7]
[424654234,1781034659000,-150.0,0.00027438,7]
[424654233,1781034659000,-565.10148306,0.00027435,7]
[424654231,1781034659000,-152.0,0.00027434,11]
[424654235,1781034659000,-150.0,0.00027456,7]
[424654178,1781034659000,-768.98023,0.00027397,2]
[424654219,1781034659000,-1121.71,0.000274,7]
[424654211,1781034659000,-652.891274,0.00027397,2]
[424654215,1781034659000,-186.80534214,0.00027397,30]
[424654202,1781034659000,-652.891274,0.00027397,2]
[424654181,1781034659000,-768.98023,0.00027397,2]
[424654201,1781034659000,-652.891274,0.00027397,2]
[424654184,1781034659000,-768.98023,0.00027397,2]
[424654188,1781034659000,-151.0,0.00027397,2]
[424654182,1781034659000,-768.98023,0.00027397,2]
[424654187,1781034659000,-403.018373,0.00027397,2]
[424654180,1781034659000,-768.98023,0.00027397,2]
[424654183,1781034659000,-768.98023,0.00027397,2]
[424654185,1781034659000,-768.98023,0.00027397,2]
[424654190,1781034659000,-151.0,0.00027397,2]
[424654200,1781034659000,-652.891274,0.00027397,2]
[424654189,1781034659000,-403.018373,0.00027397,2]
[424654193,1781034659000,-403.018373,0.00027397,2]
[424654186,1781034659000,-403.018373,0.00027397,2]
[424654195,1781034659000,-403.018373,0.00027397,2]
[424654212,1781034659000,-300.0,0.00027397,2]
[424654191,1781034659000,-403.018373,0.00027397,2]
[424654207,1781034659000,-652.891274,0.00027397,2]
[424654203,1781034659000,-652.891274,0.00027397,2]
[424654204,1781034659000,-652.891274,0.00027397,2]
[424654197,1781034659000,-403.018373,0.00027397,2]
[424654209,1781034659000,-652.891274,0.00027397,2]
[424654196,1781034659000,-403.018373,0.00027397,2]
[424654194,1781034659000,-403.018373,0.00027397,2]
[424654192,1781034659000,-403.018373,0.00027397,2]
[424654198,1781034659000,-403.018373,0.00027397,2]
[424654199,1781034659000,-403.018373,0.00027397,2]
[424654281,1781034660000,-150.0,0.00027603,7]
[424654279,1781034660000,-150.0,0.00027595,7]
[424654275,1781034660000,-167.21291421,0.00027581,7]
[424654280,1781034660000,-1281.01,0.000276,7]
[424654269,1781034660000,-150.0,0.00027537,7]
[424654276,1781034660000,-565.10148306,0.00027581,7]
[424654278,1781034660000,-1162.5,0.00027593,2]
[424654272,1781034660000,-150.0,0.0002757,7]
[424654271,1781034660000,-565.10148306,0.00027552,7]
[424654270,1781034660000,-167.21291421,0.00027552,7]
[424654284,1781034660000,-773.11,0.00027611,2]
[424654277,1781034660000,-150.0,0.00027593,7]
[424654282,1781034660000,-167.21291421,0.0002761,7]
[424654296,1781034660000,-164.73608942,0.00027637,2]
[424654283,1781034660000,-565.10148306,0.0002761,7]
[424654287,1781034660000,-285.20538426,0.00027637,2]
[424654297,1781034660000,-222.27577882,0.00027637,2]
[424654288,1781034660000,-163.7756428,0.00027637,2]
[424654289,1781034660000,-157.60489862,0.00027637,2]
[424654286,1781034660000,-150.0,0.00027636,7]
[424654294,1781034660000,-154.53096469,0.00027637,2]
[424654290,1781034660000,-192.81293498,0.00027637,2]
[424654291,1781034660000,-152.57827528,0.00027637,2]
[424654293,1781034660000,-200.1294388,0.00027637,2]
[424654295,1781034660000,-205.5537769,0.00027637,2]
[424654266,1781034660000,-150.0,0.00027537,7]
[424654285,1781034660000,-150.0,0.00027618,7]
[424654265,1781034660000,-150.0,0.00027537,7]
[424654239,1781034660000,-565.10148306,0.00027464,7]
[424654267,1781034660000,-150.0,0.00027537,7]
[424654292,1781034660000,-192.60229031,0.00027637,2]
[424654237,1781034660000,-167.21291421,0.00027464,7]
[424654247,1781034660000,-160.72,0.00027464,2]
[424654242,1781034660000,-160.72,0.00027464,2]
[424654244,1781034660000,-160.72,0.00027464,2]
[424654246,1781034660000,-160.72,0.00027464,2]
[424654241,1781034660000,-160.72,0.00027464,2]
[424654245,1781034660000,-160.72,0.00027464,2]
[424654248,1781034660000,-160.72,0.00027464,2]
[424654250,1781034660000,-160.72,0.00027464,2]
[424654249,1781034660000,-160.72,0.00027464,2]
[424654251,1781034660000,-160.72,0.00027464,2]
[424654268,1781034660000,-150.0,0.00027537,7]
[424654260,1781034660000,-150.0,0.00027504,7]
[424654252,1781034660000,-150.0,0.00027471,7]
[424654258,1781034660000,-500.0,0.000275,7]
[424654259,1781034660000,-3054.0,0.000275,7]
[424654257,1781034660000,-150.0,0.00027497,7]
[424654253,1781034660000,-150.0,0.00027479,7]
[424654254,1781034660000,-150.0,0.00027481,7]
[424654256,1781034660000,-565.10148306,0.00027493,7]
[424654255,1781034660000,-167.21291421,0.00027493,7]
[424654263,1781034660000,-150.0,0.00027537,7]
[424654273,1781034660000,-2503.95,0.00027573,2]
[424654274,1781034660000,-150.0,0.00027577,7]
[424654262,1781034660000,-565.10148306,0.00027522,7]
[424654261,1781034660000,-167.21291421,0.00027522,7]
[424654300,1781034660000,-180.14069751,0.00027637,2]
[424654243,1781034660000,-160.72,0.00027464,2]
[424654301,1781034660000,-172.30086377,0.00027637,2]
[424654336,1781034660000,-195.46213819,0.00027656,2]
[424654334,1781034660000,-160.82173904,0.00027656,2]
[424654331,1781034660000,-190.06613197,0.00027656,2]
[424654333,1781034660000,-391.40984973,0.00027656,2]
[424654332,1781034660000,-196.68240369,0.00027656,2]
[424654338,1781034660000,-268.84748395,0.00027656,2]
[424654339,1781034660000,-160.92995994,0.00027656,2]
[424654340,1781034660000,-152.86643447,0.00027656,2]
[424654349,1781034660000,-150.0,0.00027658,7]
[424654337,1781034660000,-202.39429255,0.00027656,2]
[424654348,1781034660000,-170.18596263,0.00027656,2]
[424654342,1781034660000,-511.35217355,0.00027656,2]
[424654347,1781034660000,-167.60890634,0.00027656,2]
[424654345,1781034660000,-217.56017004,0.00027656,2]
[424654344,1781034660000,-184.70793171,0.00027656,2]
[424654346,1781034660000,-224.29670252,0.00027656,2]
[424654343,1781034660000,-191.42463549,0.00027656,2]
[424654341,1781034660000,-185.137591,0.00027656,2]
[424654350,1781034660000,-172.2329058,0.0002766,2]
[424654353,1781034660000,-565.10148306,0.00027669,7]
[424654351,1781034660000,-170.19025665,0.0002766,2]
[424654352,1781034660000,-167.21291421,0.00027669,7]
[424654298,1781034660000,-170.00816359,0.00027637,2]
[424654358,1781034660000,-408.68476146,0.000277,2]
[424654354,1781034660000,-150.0,0.00027669,7]
[424654356,1781034660000,-150.0,0.00027698,7]
[424654355,1781034660000,-167.21291421,0.00027698,7]
[424654335,1781034660000,-158.65193891,0.00027656,2]
[424654329,1781034660000,-476.31421856,0.00027656,2]
[424654357,1781034660000,-565.10148306,0.00027698,7]
[424654327,1781034660000,-165.31276989,0.00027656,2]
[424654328,1781034660000,-169.3997664,0.00027656,2]
[424654299,1781034660000,-155.5848576,0.00027637,2]
[424654302,1781034660000,-209.96985521,0.00027637,2]
[424654306,1781034660000,-179.38677125,0.00027637,2]
[424654308,1781034660000,-157.99398363,0.00027637,2]
[424654303,1781034660000,-167.58312783,0.00027637,2]
[424654304,1781034660000,-155.64413986,0.00027637,2]
[424654309,1781034660000,-180.71913557,0.00027637,2]
[424654307,1781034660000,-222.36686323,0.00027637,2]
[424654310,1781034660000,-191.37794749,0.00027637,2]
[424654312,1781034660000,-203.46367583,0.00027637,2]
[424654323,1781034660000,-172.49123296,0.00027651,2]
[424654313,1781034660000,-196.88822682,0.00027637,2]
[424654305,1781034660000,-166.70391584,0.00027637,2]
[424654322,1781034660000,-177.21325835,0.00027651,2]
[424654311,1781034660000,-165.31450669,0.00027637,2]
[424654326,1781034660000,-153.98716135,0.00027656,2]
[424654324,1781034660000,-239.71529154,0.00027656,2]
[424654317,1781034660000,-181.73056245,0.00027651,2]
[424654320,1781034660000,-164.79976253,0.00027651,2]
[424654325,1781034660000,-266.95573363,0.00027656,2]
[424654316,1781034660000,-150.0,0.00027648,7]
[424654321,1781034660000,-176.72209396,0.00027651,2]
[424654314,1781034660000,-167.21291421,0.00027639,7]
[424654318,1781034660000,-153.3871912,0.00027651,2]
[424654330,1781034660000,-169.67944895,0.00027656,2]
[424654315,1781034660000,-565.10148306,0.00027639,7]
[424654319,1781034660000,-172.42439538,0.00027651,2]
[424654393,1781034661000,-150.0,0.00027899,7]
[424654384,1781034661000,-150.0,0.00027827,7]
[424654387,1781034661000,-565.10148306,0.00027844,7]
[424654389,1781034661000,-150.0,0.00027866,7]
[424654390,1781034661000,-150.0,0.00027871,7]
[424654388,1781034661000,-150.0,0.00027859,7]
[424654391,1781034661000,-167.21291421,0.00027874,7]
[424654394,1781034661000,-150.0,0.00027899,7]
[424654395,1781034661000,-150.0,0.00027899,7]
[424654392,1781034661000,-565.10148306,0.00027874,7]
[424654401,1781034661000,-565.10148306,0.00027932,7]
[424654397,1781034661000,-565.10148306,0.00027903,7]
[424654399,1781034661000,-150.0,0.00027927,7]
[424654398,1781034661000,-347.81880649,0.00027923,2]
[424654400,1781034661000,-167.21291421,0.00027932,7]
[424654404,1781034661000,-150.0,0.00027943,7]
[424654402,1781034661000,-150.0,0.00027932,7]
[424654403,1781034661000,-150.0,0.0002794,7]
[424654411,1781034661000,-1162.49,0.00027984,2]
[424654406,1781034661000,-167.21291421,0.00027962,7]
[424654386,1781034661000,-167.21291421,0.00027844,7]
[424654396,1781034661000,-167.21291421,0.00027903,7]
[424654385,1781034661000,-150.0,0.00027833,7]
[424654367,1781034661000,-150.0,0.00027738,7]
[424654378,1781034661000,-1281.01,0.000278,7]
[424654360,1781034661000,-159.71397698,0.000277,2]
[424654359,1781034661000,-179.71394717,0.000277,2]
[424654362,1781034661000,-150.0,0.00027704,7]
[424654361,1781034661000,-150.0,0.00027702,7]
[424654363,1781034661000,-150.0,0.00027711,7]
[424654368,1781034661000,-167.21291421,0.00027757,7]
[424654365,1781034661000,-565.10148306,0.00027727,7]
[424654369,1781034661000,-565.10148306,0.00027757,7]
[424654364,1781034661000,-167.21291421,0.00027727,7]
[424654366,1781034661000,-150.0,0.00027735,7]
[424654383,1781034661000,-150.0,0.00027819,7]
[424654370,1781034661000,-150.0,0.0002776,7]
[424654382,1781034661000,-150.0,0.00027816,7]
[424654374,1781034661000,-565.10148306,0.00027786,7]
[424654375,1781034661000,-1162.49,0.00027789,2]
[424654373,1781034661000,-167.21291421,0.00027786,7]
[424654376,1781034661000,-10116.0,0.00027799,10]
[424654371,1781034661000,-150.0,0.00027768,7]
[424654379,1781034661000,-150.0,0.000278,7]
[424654377,1781034661000,-312.0,0.00027799,2]
[424654380,1781034661000,-167.21291421,0.00027815,7]
[424654381,1781034661000,-565.10148306,0.00027815,7]
[424654372,1781034661000,-150.0,0.00027779,7]
[424654409,1781034661000,-150.0,0.0002798,7]
[424654408,1781034661000,-150.0,0.00027965,7]
[424654410,1781034661000,-150.0,0.00027983,7]
[424654440,1781034661000,-151.0,0.00028,7]
[424654439,1781034661000,-151.0,0.00028,7]
[424654449,1781034661000,-151.0,0.00028,7]
[424654448,1781034661000,-151.0,0.00028,7]
[424654438,1781034661000,-151.0,0.00028,7]
[424654437,1781034661000,-151.0,0.00028,7]
[424654442,1781034661000,-428.871314,0.00028,7]
[424654441,1781034661000,-428.871314,0.00028,7]
[424654443,1781034661000,-428.871314,0.00028,7]
[424654444,1781034661000,-428.871314,0.00028,7]
[424654436,1781034661000,-151.0,0.00028,7]
[424654445,1781034661000,-151.0,0.00028,7]
[424654451,1781034661000,-167.21291421,0.0002802,7]
[424654453,1781034661000,-150.0,0.0002802,7]
[424654456,1781034661000,-150.0,0.00028039,7]
[424654454,1781034661000,-565.10148306,0.0002802,7]
[424654457,1781034661000,-200.0,0.00028042,2]
[424654455,1781034661000,-150.0,0.00028031,7]
[424654458,1781034661000,-167.21291421,0.00028049,7]
[424654452,1781034661000,-150.0,0.0002802,7]
[424654450,1781034661000,-215.89329178,0.00028,10]
[424654405,1781034661000,-166.6875,0.00027945,2]
[424654447,1781034661000,-151.0,0.00028,7]
[424654434,1781034661000,-159.05074,0.00028,7]
[424654446,1781034661000,-151.0,0.00028,7]
[424654431,1781034661000,-159.05074,0.00028,7]
[424654407,1781034661000,-565.10148306,0.00027962,7]
[424654429,1781034661000,-223.960333,0.00028,7]
[424654413,1781034661000,-565.10148306,0.00027991,7]
[424654422,1781034661000,-2604.7486874,0.00028,2]
[424654423,1781034661000,-10230.44,0.00028,14]
[424654412,1781034661000,-167.21291421,0.00027991,7]
[424654414,1781034661000,-150.0,0.00027998,7]
[424654419,1781034661000,-475766.150571,0.00028,2]
[424654416,1781034661000,-6490.4456403,0.00028,2]
[424654415,1781034661000,-117530.953218,0.00028,2]
[424654417,1781034661000,-362383.0438873,0.00028,2]
[424654421,1781034661000,-220278.0683608,0.00028,2]
[424654430,1781034661000,-223.960333,0.00028,7]
[424654427,1781034661000,-223.960333,0.00028,7]
[424654420,1781034661000,-2915.585493,0.00028,2]
[424654432,1781034661000,-159.05074,0.00028,7]
[424654425,1781034661000,-1281.01,0.00028,7]
[424654428,1781034661000,-223.960333,0.00028,7]
[424654433,1781034661000,-159.05074,0.00028,7]
[424654435,1781034661000,-151.0,0.00028,7]
[424654424,1781034661000,-1121.71,0.00028,7]
[424654426,1781034661000,-600.0,0.00028,2]
[424654418,1781034661000,-4930.3524381,0.00028,2]
[424654498,1781034662000,-167.21291421,0.00028284,7]
[424654503,1781034662000,-150.0,0.00028302,7]
[424654501,1781034662000,-150.0,0.00028295,7]
[424654500,1781034662000,-150.0,0.00028291,7]
[424654499,1781034662000,-565.10148306,0.00028284,7]
[424654488,1781034662000,-167.21291421,0.00028225,7]
[424654492,1781034662000,-565.10148306,0.00028254,7]
[424654493,1781034662000,-150.0,0.00028262,7]
[424654491,1781034662000,-167.21291421,0.00028254,7]
[424654487,1781034662000,-150.0,0.00028221,7]
[424654508,1781034662000,-150.0,0.00028328,7]
[424654490,1781034662000,-150.0,0.00028229,7]
[424654502,1781034662000,-2000.0,0.000283,2]
[424654517,1781034662000,-1500.0,0.00028364,15]
[424654505,1781034662000,-167.21291421,0.00028313,7]
[424654506,1781034662000,-565.10148306,0.00028313,7]
[424654509,1781034662000,-167.21291421,0.00028342,7]
[424654510,1781034662000,-150.0,0.00028342,7]
[424654504,1781034662000,-544.0,0.00028306,7]
[424654511,1781034662000,-565.10148306,0.00028342,7]
[424654521,1781034662000,-1500.0,0.00028364,15]
[424654522,1781034662000,-1500.0,0.00028364,15]
[424654513,1781034662000,-1500.0,0.00028364,15]
[424654515,1781034662000,-1500.0,0.00028364,15]
[424654514,1781034662000,-1500.0,0.00028364,15]
[424654512,1781034662000,-150.0,0.0002836,7]
[424654489,1781034662000,-565.10148306,0.00028225,7]
[424654507,1781034662000,-150.0,0.00028317,7]
[424654485,1781034662000,-1281.01,0.000282,7]
[424654472,1781034662000,-167.21291421,0.00028137,7]
[424654495,1781034662000,-150.0,0.00028262,7]
[424654461,1781034662000,-150.0,0.0002806,7]
[424654460,1781034662000,-150.0,0.00028059,7]
[424654459,1781034662000,-565.10148306,0.00028049,7]
[424654462,1781034662000,-150.0,0.00028064,7]
[424654464,1781034662000,-565.10148306,0.00028079,7]
[424654469,1781034662000,-167.21291421,0.00028108,7]
[424654465,1781034662000,-152.0,0.00028087,12]
[424654471,1781034662000,-150.0,0.0002813,7]
[424654468,1781034662000,-150.0,0.00028101,7]
[424654470,1781034662000,-565.10148306,0.00028108,7]
[424654463,1781034662000,-167.21291421,0.00028079,7]
[424654467,1781034662000,-150.0,0.00028097,7]
[424654466,1781034662000,-150.0,0.00028094,7]
[424654518,1781034662000,-1500.0,0.00028364,15]
[424654473,1781034662000,-565.10148306,0.00028137,7]
[424654479,1781034662000,-150.0,0.00028175,7]
[424654474,1781034662000,-150.0,0.00028141,7]
[424654477,1781034662000,-167.21291421,0.00028166,7]
[424654482,1781034662000,-167.21291421,0.00028196,7]
[424654481,1781034662000,-150.0,0.00028181,7]
[424654478,1781034662000,-565.10148306,0.00028166,7]
[424654475,1781034662000,-150.0,0.0002815,7]
[424654476,1781034662000,-150.0,0.00028163,7]
[424654480,1781034662000,-1162.49,0.0002818,2]
[424654483,1781034662000,-565.10148306,0.00028196,7]
[424654486,1781034662000,-150.0,0.00028206,7]
[424654494,1781034662000,-150.0,0.00028262,7]
[424654496,1781034662000,-150.0,0.00028262,7]
[424654484,1781034662000,-150.0,0.00028196,7]
[424654519,1781034662000,-1500.0,0.00028364,15]
[424654497,1781034662000,-1599.6,0.00028267,2]
[424654520,1781034662000,-1500.0,0.00028364,15]
[424654556,1781034662000,-565.10148306,0.00028518,7]
[424654555,1781034662000,-167.21291421,0.00028518,7]
[424654557,1781034662000,-150.0,0.00028523,7]
[424654559,1781034662000,-482.30328528,0.00028527,2]
[424654560,1781034662000,-150.0,0.0002854,7]
[424654562,1781034662000,-167.21291421,0.00028547,7]
[424654558,1781034662000,-150.0,0.00028525,7]
[424654564,1781034662000,-150.0,0.00028558,7]
[424654566,1781034662000,-167.21291421,0.00028576,7]
[424654575,1781034662000,-565.10148306,0.00028606,7]
[424654576,1781034662000,-150.0,0.00028624,7]
[424654567,1781034662000,-565.10148306,0.00028576,7]
[424654563,1781034662000,-565.10148306,0.00028547,7]
[424654554,1781034662000,-6426.36,0.00028515,7]
[424654574,1781034662000,-167.21291421,0.00028606,7]
[424654570,1781034662000,-150.0,0.00028596,7]
[424654569,1781034662000,-150.0,0.00028591,7]
[424654571,1781034662000,-1121.71,0.000286,7]
[424654573,1781034662000,-3054.0,0.000286,7]
[424654568,1781034662000,-150.0,0.00028584,7]
[424654572,1781034662000,-1281.01,0.000286,7]
[424654577,1781034662000,-150.0,0.00028624,7]
[424654578,1781034662000,-150.0,0.00028624,7]
[424654579,1781034662000,-5568.94,0.0002863,30]
[424654581,1781034662000,-11601.43,0.0002863,30]
[424654583,1781034662000,-3158.22,0.0002863,30]
[424654582,1781034662000,-2247.89,0.0002863,2]
[424654516,1781034662000,-1500.0,0.00028364,15]
[424654565,1781034662000,-1162.49,0.00028571,2]
[424654561,1781034662000,-150.0,0.00028543,7]
[424654580,1781034662000,-244.34,0.0002863,2]
[424654553,1781034662000,-150.0,0.00028503,7]
[424654551,1781034662000,-10230.44,0.000285,14]
[424654532,1781034662000,-565.10148306,0.00028401,7]
[424654524,1781034662000,-167.21291421,0.00028371,7]
[424654523,1781034662000,-1814.476479,0.00028364,15]
[424654529,1781034662000,-150.0,0.00028393,7]
[424654525,1781034662000,-565.10148306,0.00028371,7]
[424654534,1781034662000,-150.0,0.00028423,7]
[424654533,1781034662000,-150.0,0.00028407,7]
[424654531,1781034662000,-167.21291421,0.00028401,7]
[424654526,1781034662000,-150.0,0.00028373,7]
[424654530,1781034662000,-1281.01,0.000284,7]
[424654528,1781034662000,-150.0,0.00028382,7]
[424654527,1781034662000,-1162.49,0.00028376,2]
[424654537,1781034662000,-167.21291421,0.0002843,7]
[424654535,1781034662000,-150.0,0.00028426,7]
[424654548,1781034662000,-565.10148306,0.00028489,7]
[424654547,1781034662000,-167.21291421,0.00028489,7]
[424654550,1781034662000,-166.6875,0.00028493,2]
[424654543,1781034662000,-17600.0,0.00028463,7]
[424654545,1781034662000,-1246.86994351,0.0002847,2]
[424654546,1781034662000,-150.0,0.00028485,7]
[424654544,1781034662000,-500.0,0.0002847,2]
[424654552,1781034662000,-150.0,0.00028503,7]
[424654540,1781034662000,-565.10148306,0.00028459,7]
[424654542,1781034662000,-150.0,0.00028463,7]
[424654541,1781034662000,-150.0,0.00028459,7]
[424654538,1781034662000,-565.10148306,0.0002843,7]
[424654549,1781034662000,-150.0,0.00028492,7]
[424654536,1781034662000,-150.0,0.00028429,7]
[424654539,1781034662000,-167.21291421,0.00028459,7]
[424654636,1781034663000,-6075.0,0.0002878,2]
[424654629,1781034663000,-3555.0,0.0002878,2]
[424654627,1781034663000,-379.84,0.00028767,11]
[424654623,1781034663000,-350.0,0.00028767,11]
[424654619,1781034663000,-150.0,0.00028763,7]
[424654622,1781034663000,-217.55092658,0.00028767,2]
[424654620,1781034663000,-1162.49,0.00028767,2]
[424654617,1781034663000,-2247.89,0.00028756,7]
[424654630,1781034663000,-1358.0,0.0002878,2]
[424654615,1781034663000,-150.0,0.00028754,7]
[424654621,1781034663000,-500.0,0.00028767,2]
[424654618,1781034663000,-2248.21,0.00028756,7]
[424654635,1781034663000,-3643.0,0.0002878,2]
[424654626,1781034663000,-350.0,0.00028767,11]
[424654625,1781034663000,-350.0,0.00028767,11]
[424654633,1781034663000,-1227.0,0.0002878,2]
[424654634,1781034663000,-1214.0,0.0002878,2]
[424654628,1781034663000,-150.0,0.00028767,2]
[424654632,1781034663000,-1274.0,0.0002878,2]
[424654624,1781034663000,-350.0,0.00028767,11]
[424654638,1781034663000,-565.10148306,0.00028781,7]